fUSD/lending_fUSD_20240713
["ID","MTS","AMOUNT","RATE_DAILY","PERIOD"]
[331925409,1720855839880,-561.60011832,0.000135,2]
[331925412,1720855839891,-244.63158168,0.000135,2]
[331925413,1720855839900,-303.66616832,0.000135,2]
[331925416,1720855839911,-696.33383168,0.000135,2]
[331925418,1720855839921,-283.54283326,0.00013516,2]
[331925420,1720855839930,-34.74063556,0.000136,2]
[331925422,1720855839941,-25116.82046444,0.000136,2]
[331925424,1720855839950,-500.0,0.000136,2]
[331925426,1720855839959,-100000.0,0.000136,2]
[331925428,1720855839969,-13790.9694,0.000136,2]
[331925430,1720855839980,-1000.0,0.000136,2]
[331925432,1720855839990,-417.93936495,0.00013647,2]
[331925433,1720855839999,-1549.91,0.00013698,2]
[331925435,1720855840009,-528.74,0.00013698,2]
[331925437,1720855840018,-500.0,0.00013698,2]
[331925439,1720855840027,-1379.06,0.00013698,2]
[331925442,1720855840036,-1065.72,0.00013698,2]
[331925443,1720855840046,-500.0,0.00013698,2]
[331925445,1720855840055,-503.97799708,0.00013698,2]
[331925447,1720855840064,-500.0,0.00013698,2]
[331925449,1720855840073,-500.0,0.00013698,2]
[331925451,1720855840082,-500.0,0.00013698,2]
[331925453,1720855840092,-2488.09,0.00013699,2]
[331925455,1720855840101,-1159.13,0.00013699,2]
[331925457,1720855840110,-200.0,0.00013699,2]
[331925459,1720855840119,-296.02,0.00013699,2]
[331925461,1720855840128,-250.0,0.00013699,2]
[331925463,1720855840137,-821.35,0.00013699,2]
[331925465,1720855840146,-500.0,0.00013699,2]
[331925467,1720855840155,-186.97237086,0.00013708,2]
[331925469,1720855840164,-1549.91,0.00013753,2]
[331925471,1720855840173,-528.74,0.00013753,2]
[331925473,1720855840182,-500.0,0.00013753,2]
[331925475,1720855840191,-1379.06,0.00013753,2]
[331925477,1720855840200,-1065.72,0.00013753,2]
[331925479,1720855840209,-500.0,0.00013753,2]
[331925481,1720855840218,-220.47332512,0.00013753,2]
[331925483,1720855840227,-488.66480947,0.00013753,2]
[331925485,1720855840236,-512.30799697,0.00013753,2]
[331925487,1720855840245,-821.35,0.00013754,2]
[331925489,1720855840254,-564.0839527,0.00013754,2]
[331925490,1720855840263,-10001.52359973,0.0001377,2]
[331925492,1720855840272,-186.97237086,0.00013772,2]
[331925494,1720855840281,-213.11036311,0.0001379,2]
[331925496,1720855840292,-1471.441389,0.00013798,2]
[331925498,1720855840301,-2207.162084,0.00013798,2]
[331925500,1720855840311,-2942.882779,0.00013798,2]
[331925502,1720855840320,-3678.603474,0.00013798,2]
[331925504,1720855840329,-5150.044864,0.00013798,2]
[331925506,1720855840338,-5885.765559,0.00013798,2]
[331925508,1720855840347,-500.0,0.00013799,2]
[331925510,1720855840355,-633.86439361,0.00013799,2]
[331925512,1720855840365,-2091.09,0.00013799,2]
[331925514,1720855840375,-605.60805123,0.00013799,2]
[331925516,1720855840383,-500.0,0.00013799,2]
[331925518,1720855840394,-2500.0,0.00013799,3]
[331925520,1720855840403,-500.0,0.00013799,2]
[331925522,1720855840413,-506.24529251,0.00013799,2]
[331925524,1720855840422,-500.0,0.00013799,2]
[331925526,1720855840433,-190.1319311,0.00013799,2]
[331925528,1720855840443,-190.13193106,0.00013799,2]
[331925530,1720855840452,-190.13193106,0.00013799,2]
[331925532,1720855840462,-190.13193106,0.00013799,2]
[331925534,1720855840471,-190.13193106,0.00013799,2]
[331925536,1720855840482,-190.13193106,0.00013799,2]
[331925538,1720855840491,-190.13193106,0.00013799,2]
[331925540,1720855840500,-190.13193106,0.00013799,2]
[331925542,1720855840510,-190.13193106,0.00013799,2]
[331925544,1720855840519,-68124.60392511,0.000138,2]
[331925548,1720855840552,-15912.90727489,0.000138,2]
[331925550,1720855840562,-169.57491916,0.000138,2]
[331925552,1720855840571,-1549.91,0.00013808,2]
[331925554,1720855840580,-528.74,0.00013808,2]
[331925556,1720855840589,-500.0,0.00013808,2]
[331925557,1720855840599,-1379.06,0.00013808,2]
[331925558,1720855840608,-1065.72,0.00013808,2]
[331925559,1720855840617,-380.0,0.00013808,2]
[331925560,1720855840626,-220.57,0.00013808,2]
[331925561,1720855840635,-821.35,0.00013809,2]
[331925562,1720855840644,-186.97237086,0.00013836,2]
[331925563,1720855840653,-179.89189734,0.00013844,2]
[331925564,1720855840662,-2495.57012719,0.00013849,2]
[331925565,1720855840671,-505.7279131,0.00013854,2]
[331925566,1720855840680,-2091.09,0.00013854,2]
[331925567,1720855840689,-500.0,0.00013854,2]
[331925568,1720855840698,-2500.0,0.00013854,3]
[331925569,1720855840707,-500.0,0.00013854,2]
[331925571,1720855840716,-500.0,0.00013854,2]
[331925573,1720855840725,-1549.91,0.00013863,2]
[331925575,1720855840733,-528.74,0.00013863,2]
[331925577,1720855840742,-500.0,0.00013863,2]
[331925579,1720855840751,-1379.06,0.00013863,2]
[331925580,1720855840760,-1065.72,0.00013863,2]
[331925583,1720855840770,-821.35,0.00013864,2]
[331925584,1720855840779,-9036.5841104,0.00013898,2]
[331925586,1720855840789,-209.94764365,0.00013899,2]
[331925588,1720855840798,-5932.14747304,0.00013899,2]
[331925590,1720855840807,-500.0,0.00013899,2]
[331925592,1720855840816,-452.59512424,0.00013899,2]
[331925594,1720855840826,-500.0,0.00013899,2]
[331925596,1720855840836,-328.16751316,0.00013899,2]
[331925599,1720855840857,-171.83248684,0.00013899,2]
[331925601,1720855840866,-500.0,0.00013899,2]
[331925604,1720855840876,-500.0,0.00013899,2]
[331925606,1720855840887,-500.0,0.00013899,2]
[331925608,1720855840897,-622.00437569,0.00013899,2]
[331925610,1720855840907,-500.0,0.00013899,2]
[331925612,1720855840918,-398.72797041,0.00013899,2]
[331925614,1720855840928,-500.0,0.00013899,2]
[331925616,1720855840938,-500.0,0.00013899,2]
[331925618,1720855840950,-500.0,0.00013899,2]
[331925620,1720855840960,-742.36440838,0.00013899,5]
[331925623,1720855840973,-409.7153858,0.00013899,5]
[331925625,1720855840985,-212.07817603,0.00013899,2]
[331925627,1720855840995,-255.82131231,0.00013899,2]
[331925629,1720855841005,-500.0,0.00013899,2]
[331925631,1720855841015,-482.69654834,0.00013899,2]
[331925634,1720855841028,-503.87072805,0.00013899,2]
[331925636,1720855841037,-206.44721782,0.00013899,2]
[331925637,1720855841046,-376711.33101017,0.000139,2]
[331925640,1720855841058,-139871.67467533,0.000139,2]
[331926035,1720855844843,-361.7689557,0.000139,2]
[331926037,1720855844854,-329.1979818,0.000139,2]
[331926039,1720855844865,-17165.64139269,0.000139,2]
[331926129,1720855845668,-497.75,0.000139,2]
[331926131,1720855845679,-1216.07779227,0.000139,2]
[331926136,1720855845717,-950.12974325,0.000139,2]
[331926139,1720855845728,-511.85185807,0.000139,2]
[331926156,1720855845876,-7004.27684357,0.000139,2]
[331926158,1720855845887,-36866.90749795,0.000139,2]
[331926160,1720855845898,-62656.64133872,0.000139,2]
[331926162,1720855845909,-1764.41896762,0.000139,2]
[331926165,1720855845928,-380.77254656,0.000139,2]
[331926168,1720855845940,-4667.62693488,0.000139,2]
[331927282,1720856333893,389.44,0.00010571,2]
[331927286,1720856618374,447.13,0.00011875,2]
[331927287,1720856637106,313.28164532,0.00011199,2]
[331927289,1720856679930,150.0,0.00011939,2]
[331927290,1720856709322,156.65456746,0.00011199,2]
[331927291,1720856729654,1000.0,0.00011932,2]
[331927292,1720856736807,284.3295348,0.00011199,2]
[331927304,1720856760354,432.21963604,0.00011199,2]
[331927324,1720856871502,2496.09067824,0.00011199,2]
[331927325,1720856872632,987.1231083,0.00011199,4]
[331927326,1720856872665,1472.3150038,0.00011199,4]
[331927327,1720856872695,439.5835566,0.00011199,4]
[331927328,1720856872723,3135.95386635,0.00011199,4]
[331927329,1720856872754,3440.05786108,0.00011199,4]
[331927330,1720856872780,23524.96660387,0.00011199,4]
[331927331,1720856885079,413.21120921,0.00011199,2]
[331927332,1720856885281,266.67996782,0.00011199,2]
[331927333,1720856916370,390.55,0.0001017,2]
[331927345,1720856958633,281.8210833,0.0001017,4]
[331927356,1720857031625,-250.0,0.00011674,2]
[331927357,1720857031635,-664.02948171,0.00011803,2]
[331927358,1720857031647,-293.58611041,0.00011803,2]
[331927359,1720857031657,-5062.96508959,0.00011803,2]
[331927360,1720857031669,-695.22906592,0.00011803,2]
[331927361,1720857031680,-3142.88092348,0.00011803,2]
[331927362,1720857031692,-259.37769393,0.00011803,2]
[331927363,1720857031702,-468.09747962,0.00011803,2]
[331927364,1720857031731,-339.85299,0.00011803,2]
[331927365,1720857031743,-331.32047847,0.00011803,2]
[331927366,1720857031786,-26860.49584804,0.00011803,2]
[331927367,1720857031797,-1536.45624291,0.00011803,2]
[331927368,1720857031808,-27635.9657949,0.00011803,2]
[331927369,1720857031840,-1502.92032109,0.00011803,2]
[331927370,1720857031851,-3603.53690901,0.00011803,2]
[331927371,1720857031863,-789.29286824,0.00011803,2]
[331927372,1720857031874,-8202.0,0.00011803,2]
[331927373,1720857031895,-3317.59,0.00011803,2]
[331927381,1720857037621,-527.99648139,0.00011803,2]
[331927383,1720857037632,-6408.90008321,0.00011803,2]
[331927385,1720857037642,-500.0,0.00011827,2]
[331927387,1720857037650,-17996.35102821,0.00011903,2]
[331927388,1720857037663,-955.97027776,0.00011903,2]
[331927389,1720857037674,-4936.4916975,0.00011903,2]
[331927390,1720857037685,-3074.74985537,0.00011903,2]
[331927391,1720857037696,-1765.0,0.00011903,2]
[331927392,1720857037707,-2658.89648734,0.00011903,2]
[331927393,1720857037783,-3265.55644233,0.00011903,2]
[331927394,1720857037835,-10277.59995078,0.00011903,2]
[331927395,1720857037847,-451.57864314,0.00011903,2]
[331927396,1720857037890,-13155.43099431,0.00011903,2]
[331927397,1720857037902,-880.12,0.00011903,2]
[331927398,1720857037914,-1900.0,0.00011903,2]
[331927399,1720857037943,-853.08727691,0.00011903,2]
[331927400,1720857037955,-20045.16734635,0.00011903,2]
[331927401,1720857037965,-5130.3811,0.00011913,2]
[331927402,1720857037975,-160.27755312,0.00011922,2]
[331927403,1720857037985,-250.0,0.00011954,2]
[331927404,1720857037995,-662.16661048,0.00011954,2]
[331927405,1720857038004,-6505.27088379,0.00012014,2]
[331927406,1720857038014,-1011.64476456,0.00012022,2]
[331927407,1720857038023,-150.0,0.00012023,2]
[331927408,1720857038033,-798.17,0.00012045,2]
[331927409,1720857038042,-214.29,0.00012046,2]
[331927410,1720857038052,-23880.0,0.00012079,2]
[331927411,1720857038062,-155.0,0.00012314,2]
[331927412,1720857038071,-2496.09067824,0.00012327,2]
[331927413,1720857038080,-881.35624115,0.00012327,2]
[331927414,1720857038090,-299.99,0.00012383,2]
[331927415,1720857038100,-160.27755312,0.00012383,2]
[331927417,1720857038109,-390.55,0.00012434,2]
[331927419,1720857038118,-150.99,0.00012483,2]
[331927421,1720857038127,-499.99,0.00012483,2]
[331927422,1720857038137,-5284.27,0.00012483,2]
[331927424,1720857038146,-155.27,0.00012483,2]
[331927426,1720857038155,-191.07,0.00012535,2]
[331927428,1720857038165,-1000.0,0.00012535,2]
[331927430,1720857038175,-2500.0,0.00012535,2]
[331927432,1720857038184,-382.2977,0.000128,2]
[331927434,1720857038194,-321.90822086,0.000128,2]
[331927436,1720857038203,-317.42114932,0.0001284,2]
[331927438,1720857038214,-169.73,0.0001286,2]
[331927440,1720857038223,-222060.0,0.000129,2]
[331927442,1720857038234,-259.40927346,0.000129,2]
[331927444,1720857038243,-259.40927343,0.00012991,2]
[331927446,1720857038252,-1250.0,0.00013,2]
[331927448,1720857038262,-317.42114932,0.00013105,2]
[331927450,1720857038272,-255.0,0.00013105,2]
[331927452,1720857038281,-259.40927343,0.00013143,2]
[331927454,1720857038290,-259.40927343,0.00013294,2]
[331927456,1720857038300,-317.42114932,0.0001337,2]
[331927458,1720857038309,-189.707527,0.00013417,2]
[331927460,1720857038318,-1000.0,0.00013423,2]
[331927462,1720857038327,-259.40927343,0.00013446,2]
[331927463,1720857038337,-310.0,0.00013472,2]
[331927465,1720857038346,-266.5660398,0.00013543,2]
[331927467,1720857038357,-214.29,0.00013552,2]
[331927469,1720857038366,-189.707527,0.00013585,2]
[331927471,1720857038376,-259.40927343,0.00013597,2]
[331927473,1720857038386,-317.42114932,0.00013635,2]
[331927475,1720857038395,-417.93936495,0.00013687,2]
[331927477,1720857038405,-500.0,0.00013698,2]
[331927479,1720857038414,-255.67407275,0.00013698,2]
[331927481,1720857038424,-2500.0,0.00013698,3]
[331927483,1720857038433,-500.0,0.00013698,2]
[331927485,1720857038443,-500.0,0.00013698,2]
[331927487,1720857038453,-153.80921474,0.00013698,2]
[331927489,1720857038463,-684.46,0.00013698,2]
[331927491,1720857038474,-500.0,0.00013698,2]
[331927493,1720857038483,-1340.04,0.00013698,2]
[331927496,1720857038493,-355.9354224,0.00013698,2]
[331927497,1720857038503,-500.0,0.00013698,2]
[331927499,1720857038512,-306.16523915,0.00013698,2]
[331927501,1720857038521,-500.0,0.00013698,2]
[331927503,1720857038530,-500.0,0.00013698,2]
[331927505,1720857038540,-1916.84,0.00013698,2]
[331927507,1720857038549,-500.0,0.00013698,2]
[331927509,1720857038559,-929.76,0.00013698,2]
[331927511,1720857038568,-1190.88,0.00013698,2]
[331927513,1720857038577,-250.0,0.00013699,2]
[331927515,1720857038587,-295.94,0.00013699,2]
[331927517,1720857038596,-259.40927343,0.00013749,2]
[331927519,1720857038606,-189.707527,0.00013752,2]
[331927521,1720857038615,-500.71059445,0.00013753,2]
[331927523,1720857038626,-870.61418717,0.00013753,3]
[331927525,1720857038636,-500.0,0.00013753,2]
[331927528,1720857038647,-351.60472877,0.00013753,2]
[331927530,1720857038656,-684.46,0.00013753,2]
[331927532,1720857038667,-500.0,0.00013753,2]
[331927534,1720857038676,-1340.04,0.00013753,2]
[331927536,1720857038685,-500.0,0.00013753,2]
[331927538,1720857038696,-500.0,0.00013753,2]
[331927539,1720857038705,-500.0,0.00013753,2]
[331927542,1720857038715,-1916.84,0.00013753,2]
[331927544,1720857038724,-500.0,0.00013753,2]
[331927546,1720857038733,-929.76,0.00013753,2]
[331927548,1720857038743,-1190.88,0.00013753,2]
[331927550,1720857038752,-500.0,0.00013788,2]
[331927552,1720857038761,-500.0,0.00013789,2]
[331927554,1720857038772,-500.0,0.00013789,2]
[331927556,1720857038781,-200.0,0.00013789,2]
[331927558,1720857038790,-158.93613904,0.00013799,2]
[331927560,1720857038799,-158.93613903,0.00013799,2]
[331927562,1720857038808,-158.93613903,0.00013799,2]
[331927564,1720857038822,-158.93613903,0.00013799,2]
[331927566,1720857038831,-158.93613903,0.00013799,2]
[331927568,1720857038841,-158.93613903,0.00013799,2]
[331927570,1720857038850,-158.93613903,0.00013799,2]
[331927572,1720857038859,-158.93613903,0.00013799,2]
[331927574,1720857038869,-158.93613903,0.00013799,2]
[331927576,1720857038879,-1000.0,0.000138,2]
[331927578,1720857038888,-169.57491914,0.000138,2]
[331927580,1720857038898,-347.71686897,0.000138,3]
[331927582,1720857038907,-503.86048133,0.00013808,2]
[331927584,1720857038917,-684.46,0.00013808,2]
[331927586,1720857038926,-500.0,0.00013808,2]
[331927588,1720857038936,-1340.04,0.00013808,2]
[331927590,1720857038946,-500.0,0.00013808,2]
[331927592,1720857038955,-500.0,0.00013808,2]
[331927594,1720857038965,-1916.84,0.00013808,2]
[331927596,1720857038974,-929.76,0.00013808,2]
[331927598,1720857038983,-1190.88,0.00013808,2]
[331927600,1720857038993,-281104.41,0.0001385,2]
[331927602,1720857039002,-684.46,0.00013863,2]
[331927604,1720857039011,-500.0,0.00013863,2]
[331927606,1720857039021,-1340.04,0.00013863,2]
[331927608,1720857039030,-500.0,0.00013863,2]
[331927610,1720857039039,-500.0,0.00013863,2]
[331927611,1720857039049,-1916.84,0.00013863,2]
[331927614,1720857039058,-929.76,0.00013863,2]
[331927615,1720857039067,-1190.88,0.00013863,2]
[331927617,1720857039078,-3902.727315,0.0001389,3]
[331927620,1720857039087,-287.52381935,0.00013899,2]
[331927622,1720857039098,-433.44874727,0.00013899,2]
[331927624,1720857039107,-500.0,0.00013899,2]
[331927626,1720857039117,-171.92556006,0.00013899,2]
[331927628,1720857039126,-500.0,0.00013899,2]
[331927630,1720857039135,-201.91053523,0.00013899,2]
[331927632,1720857039144,-500.0,0.00013899,2]
[331927646,1720857039325,-500.0,0.00013899,2]
[331927647,1720857039335,-500.0,0.00013899,2]
[331927648,1720857039345,-500.0,0.00013899,2]
[331927649,1720857039354,-500.0,0.00013899,2]
[331927650,1720857039364,-500.0,0.00013899,2]
[331927651,1720857039374,-500.0,0.00013899,2]
[331927652,1720857039384,-500.0,0.00013899,2]
[331927654,1720857039393,-500.0,0.00013899,2]
[331927656,1720857039403,-500.0,0.00013899,2]
[331927658,1720857039412,-500.0,0.00013899,2]
[331927660,1720857039422,-500.0,0.00013899,2]
[331927662,1720857039431,-231.40525293,0.00013899,2]
[331927664,1720857039441,-500.0,0.00013899,2]
[331927666,1720857039450,-500.0,0.00013899,2]
[331927668,1720857039460,-500.0,0.00013899,2]
[331927670,1720857039469,-500.0,0.00013899,2]
[331927672,1720857039479,-539.34341677,0.00013899,2]
[331927673,1720857039488,-500.0,0.00013899,2]
[331927675,1720857039498,-500.0,0.00013899,2]
[331927677,1720857039507,-500.0,0.00013899,2]
[331927680,1720857039517,-500.0,0.00013899,2]
[331927683,1720857039526,-500.0,0.00013899,2]
[331927685,1720857039536,-500.0,0.00013899,2]
[331927687,1720857039545,-141204.23133151,0.000139,2]
[331927690,1720857039560,-4474.43573524,0.000139,2]
[331927692,1720857039577,-1857.14049247,0.000139,2]
[331927713,1720857039716,-300.0,0.000139,2]
[331927742,1720857039977,-663.40789983,0.000139,2]
[331928034,1720857042785,-421.488,0.000139,2]
[331928040,1720857042842,-7804.57887664,0.000139,2]
[331928042,1720857042854,-25191.37580302,0.000139,2]
[331928193,1720857044326,-582.24332987,0.000139,2]
[331928327,1720857045756,-266.5660398,0.00013516,2]
[331928328,1720857045765,-500.0,0.00013698,2]
[331928329,1720857045774,-500.0,0.00013753,2]
[331928330,1720857045783,-500.0,0.00013808,2]
[331928331,1720857045793,-500.0,0.00013863,2]
[331928332,1720857045803,-402.65679537,0.000139,2]
[331928333,1720857045865,-502.35968086,0.000139,2]
[331928336,1720857045919,-5872.55102109,0.000139,2]
[331928339,1720857045973,-1400.13337574,0.000139,2]
[331928341,1720857046134,-189710.90897304,0.000139,2]
[331928343,1720857126320,3029.40981677,0.00011199,2]
[331928344,1720857157272,155.0,0.00011199,2]
[331928345,1720857194273,1315.68616706,0.00011199,2]
[331928346,1720857277205,211.539,0.00011199,2]
[331928347,1720857295748,251.5542779,0.00011199,2]
[331928348,1720857488178,418.13,0.00010805,2]
[331928349,1720857491333,716.55111693,0.00011199,2]
[331928353,1720857882244,158.26199635,0.00011199,2]
[331928355,1720857916539,2114.27194275,0.00011199,2]
[331928360,1720857990408,397.22,0.00010453,2]
[331928361,1720857991840,266.67996782,0.00011199,2]
[331928363,1720858005852,891.01341507,0.00011199,2]
[331928364,1720858010846,215.87645086,0.00011199,2]
[331928369,1720858119468,3229.21016625,0.00011199,2]
[331928370,1720858119487,1000.0,0.00011199,2]
[331928371,1720858119507,11056.7719547,0.00011199,2]
[331928372,1720858120043,2496.09067824,0.00011199,2]
[331928373,1720858120082,444.59006542,0.00011199,2]
[331928377,1720858149325,292.58288724,0.00011199,2]
[331928404,1720858232179,-250.0,0.00012175,2]
[331928405,1720858232189,-1029.55239045,0.00012202,2]
[331928406,1720858232232,-355.15150955,0.00012202,2]
[331928407,1720858232243,-3559.03,0.00012361,2]
[331928408,1720858232255,-500.0,0.0001237,2]
[331928409,1720858232265,-250.0,0.00012386,2]
[331928410,1720858232277,-150.0,0.00012434,2]
[331928411,1720858232289,-600.0,0.00012456,2]
[331928412,1720858232300,-679.1,0.00012469,2]
[331928413,1720858232313,-150.00000001,0.00012477,2]
[331928414,1720858232324,-196.67,0.00012594,2]
[331928415,1720858232334,-2555.27,0.00012594,2]
[331928416,1720858232346,-2570.8912,0.00012599,2]
[331928417,1720858232358,-499.99,0.00012682,2]
[331928418,1720858232368,-2024.1832,0.000127,2]
[331928419,1720858232380,-1226.8607,0.000127,2]
[331928420,1720858232392,-397.22,0.00012717,2]
[331928421,1720858232403,-206.96,0.00012748,2]
[331928422,1720858232413,-252.95,0.00012748,2]
[331928423,1720858232423,-299.99,0.0001279,2]
[331928424,1720858232432,-1176.03875563,0.0001279,2]
[331928425,1720858232442,-150.0,0.00012799,2]
[331928426,1720858232451,-87255.8025,0.000128,2]
[331928427,1720858232461,-28578.9299,0.000128,2]
[331928428,1720858232472,-400.0,0.00012819,2]
[331928429,1720858232483,-371.10892981,0.00013128,2]
[331928430,1720858232495,-602.8882208,0.00013128,2]
[331928432,1720858232507,-266.62300381,0.00013128,2]
[331928435,1720858232518,-5657.43495554,0.00013248,2]
[331928437,1720858232528,-150.762749,0.00013417,2]
[331928439,1720858232539,-417.93936495,0.00013436,2]
[331928441,1720858232553,-545.14885761,0.00013543,2]
[331928444,1720858232565,-297.19218126,0.00013574,2]
[331928445,1720858232576,-1117.49612164,0.00013622,2]
[331928446,1720858232586,-2549.5628,0.00013653,2]
[331928447,1720858232597,-413.36495907,0.00013698,2]
[331928448,1720858232606,-500.0,0.00013698,2]
[331928449,1720858232616,-570.38,0.00013698,2]
[331928450,1720858232626,-1597.36,0.00013698,2]
[331928451,1720858232638,-250.0,0.00013699,2]
[331928452,1720858232650,-500.0,0.00013699,2]
[331928453,1720858232662,-314.77,0.00013699,2]
[331928454,1720858232672,-13598.813,0.000137,2]
[331928455,1720858232684,-507.3073,0.000137,2]
[331928456,1720858232694,-1000.0,0.000137,2]
[331928457,1720858232704,-2500.0,0.000137,2]
[331928458,1720858232715,-560.93535772,0.00013753,2]
[331928459,1720858232725,-570.38,0.00013753,2]
[331928460,1720858232737,-1597.36,0.00013753,2]
[331928461,1720858232747,-2409.75864,0.0001376,2]
[331928462,1720858232758,-4248.9592247,0.0001377,2]
[331928463,1720858232769,-166.81,0.00013781,3]
[331928464,1720858232781,-174.934313,0.00013784,2]
[331928465,1720858232792,-3277.89174239,0.00013785,2]
[331928466,1720858232802,-907.06116177,0.00013785,2]
[331928467,1720858232813,-150.50133858,0.00013785,2]
[331928468,1720858232823,-990.66203701,0.00013785,2]
[331928469,1720858232833,-500.0,0.00013788,2]
[331928470,1720858232844,-500.0,0.00013789,2]
[331928471,1720858232854,-200.0,0.00013789,2]
[331928472,1720858232864,-322.15848251,0.00013798,2]
[331928473,1720858232874,-158.93613903,0.00013799,2]
[331928474,1720858232884,-1054.9,0.00013799,2]
[331928475,1720858232894,-1770.1732,0.000138,2]
[331928476,1720858232904,-500.0,0.000138,2]
[331928477,1720858232914,-24556.3743,0.000138,2]
[331928478,1720858232925,-24525.89478782,0.000138,2]
[331928479,1720858232936,-1036.0,0.000138,2]
[331928480,1720858232948,-570.38,0.00013808,2]
[331928481,1720858232959,-1597.36,0.00013808,2]
[331928482,1720858232969,-295.73795372,0.00013843,2]
[331928483,1720858232980,-907.06116177,0.00013843,2]
[331928484,1720858232991,-1054.9,0.00013854,2]
[331928485,1720858233002,-570.38,0.00013863,2]
[331928486,1720858233013,-1597.36,0.00013863,2]
[331928487,1720858233023,-2251.80545675,0.0001387,2]
[331928488,1720858233034,-239.85586312,0.0001387,2]
[331928489,1720858233044,-239.85586312,0.0001387,2]
[331928490,1720858233055,-239.85586312,0.0001387,2]
[331928491,1720858233066,-173.49,0.00013875,2]
[331928492,1720858233076,-1179.2,0.00013879,2]
[331928493,1720858233086,-663.78,0.00013879,2]
[331928494,1720858233097,-500.0,0.00013879,2]
[331928495,1720858233107,-500.0,0.00013879,2]
[331928496,1720858233117,-500.0,0.00013879,2]
[331928497,1720858233128,-2500.0,0.00013879,3]
[331928498,1720858233138,-497.36754659,0.00013879,2]
[331928499,1720858233152,-5.24684254,0.00013879,2]
[331928500,1720858233163,-403.94086134,0.00013879,2]
[331928501,1720858233181,-433.35913866,0.00013879,2]
[331928502,1720858233191,-354.36623243,0.00013879,2]
[331928503,1720858233203,-145.63376757,0.00013879,2]
[331928504,1720858233216,-248.18921433,0.00013879,2]
[331928505,1720858233226,-200.03153294,0.00013879,2]
[331928506,1720858233236,-159.23952127,0.00013879,2]
[331928507,1720858233255,-340.76047873,0.00013879,2]
[331928508,1720858233265,-498.34271775,0.00013879,2]
[331928509,1720858233275,-75.60615243,0.00013879,2]
[331928510,1720858237827,-459.382631,0.00012113,2]
[331928511,1720858237838,-160.290369,0.00012327,2]
[331928512,1720858237883,-524.61723868,0.00012327,2]
[331928513,1720858237892,-336.72426178,0.00013799,2]
[331928514,1720858237902,-280.48741284,0.00013879,2]
[331928515,1720858237912,-79.12685162,0.00013879,2]
[331928516,1720858237921,-500.0,0.00013879,2]
[331928517,1720858237931,-280.0,0.00013879,2]
[331928518,1720858237942,-500.0,0.00013879,2]
[331928519,1720858237952,-500.0,0.00013879,2]
[331928520,1720858237961,-500.0,0.00013879,2]
[331928521,1720858237971,-623.74718193,0.00013879,2]
[331928522,1720858237981,-500.0,0.00013879,2]
[331928523,1720858237990,-500.0,0.00013879,2]
[331928524,1720858238000,-500.0,0.00013879,2]
[331928525,1720858238009,-500.0,0.00013879,2]
[331928526,1720858238019,-500.0,0.00013879,2]
[331928527,1720858238029,-500.0,0.00013879,2]
[331928528,1720858238038,-500.0,0.00013879,2]
[331928529,1720858238047,-277.18700846,0.00013879,2]
[331928530,1720858238057,-500.0,0.00013879,2]
[331928531,1720858238067,-18586.61004469,0.0001388,2]
[331928532,1720858238079,-1244.38699109,0.0001388,2]
[331928533,1720858238091,-1394.66312371,0.0001388,2]
[331928534,1720858238103,-423828.22254901,0.0001388,2]
[331928535,1720858238115,-477406.24299857,0.0001388,2]
[331928536,1720858238126,-286.3073085,0.0001388,2]
[331928537,1720858238142,-481149.04519987,0.0001388,2]
[331928538,1720858238153,-777.16020434,0.0001388,2]